[Event "4th ESNA Championship 2022"]
[Site "Vaduz"]
[Date "2022.10.01"]
[Round "9.2"]
[White "Michaelides, Konstantinos"]
[Black "Efimov, Igor"]
[Result "0-1"]
[ECO "E04"]
[WhiteElo "2304"]
[BlackElo "2360"]
[Annotator "TA"]
[PlyCount "98"]
[EventDate "2022.09.25"]
[EventType "tourn"]
[EventCountry "LIE"]
[SourceTitle "playchess.com"]
[Source "ChessBase"]
[SourceQuality "1"]
[TimeControl "40/5400+30:1800+30"]

{[%evp 11,98,16,17,17,16,8,12,0,27,31,30,-47,-50,-45,-52,-53,-41,-50,-57,-54,-50,-140,-136,-145,-96,-93,-70,-146,-85,-229,-75,-275,-257,-271,-259,-352,-349,-400,-420,-416,-408,-479,-413,-617,-620,-779,-777,-733,-777,-874,-772,-763,-759,-745,-738,-730,-837,-900,-922,-832,-804,-1103,-1252,-1243,-1250,-1209,-1217,-1106,-1011,-12837,-12837,-12836,-2016,-2020,-1871,-29977,0,-933,0,-746,-754,-3071,-3086,-2890,-2711,-2552,-2234,-2007,-1322]} 1. d4 {[%emt 0:00:11]} e6 {[%emt 0:01:02]} 2. Nf3 {[%emt 0:02:28]} d5 {[%emt 0:06:12]} 3. c4 {[%emt 0:00:37]} c6 {[%emt 0:02:17]} 4. g3 {[%emt 0:02:16]} dxc4 {[%emt 0:01:19]} 5. Bg2 {[%emt 0:00:46]} Nf6 {[%emt 0:02:06]} 6. Ne5 {[%emt 0:01:21]} Bb4+ {[%emt 0:01:10]} 7. Nc3 {[%emt 0:02:19][%mdl 1024] White has compensation. is the new trend. E04: Open Catalan: 5 Nf3.} Nd5 {[%emt 0:00:28]} 8. Bd2 {[%emt 0:00:14]} Nb6 {[%emt 0:01:21]} 9. Ne4 {[%emt 0:02:30] The position is equal.} Be7 {[%emt 0:07:01]} 10. Ba5 {[%emt 0:01:58] [#]} f5 $146 {[%emt 0:16:59]} ({Predecessor:} 10... O-O 11. Nxc4 c5 12. Qb3 cxd4 13. Nxb6 axb6 14. Bxb6 Qd7 15. Nc5 Bxc5 16. Bxc5 Re8 {½-½ (22) Nguyen,V (2505)-Tran,T (2246) Ho Chi Minh City 2012}) 11. e3 {[%emt 0:15:06]} (11. Nc3 $11) 11... fxe4 $15 {[%emt 0:08:40]} 12. Qh5+ {[%emt 0:08:36]} g6 {[%emt 0:00:14]} 13. Nxg6 {[%emt 0:00:26] [#] Threatening mate with Ne5+.} Qd5 {[%emt 0:00:16]} 14. Ne5+ {[%emt 0:03:35]} Kd8 {[%emt 0:00:14]} 15. O-O {[%emt 0:02:38][%cal Ob2b3]} Kc7 $1 {[%emt 0:11:29]} 16. Bc3 {[%emt 0:11:54]} (16. Qf7 $15 Qd8 17. f3 (17. Bxe4 Qf8 $15)) 16... N8d7 $17 {[%emt 0:16:36]} 17. Qf7 {[%emt 0:12:50]} Nxe5 {[%emt 0:04:08]} (17... Qd6 $142 18. Bxe4 a5) 18. Qxe7+ {[%emt 0:04:58]} Qd7 {[%emt 0:00:19]} 19. Qg5 {[%emt 0:02:46]} (19. Qh4 $1 $15 Ng6 20. Qxe4) 19... Ng6 {[%emt 0:00:21]} (19... Nf7 $142 20. Qf4+ Nd6) 20. d5 {[%emt 0:08:53]} (20. Bxe4 $17 Re8 21. Rfc1) 20... Re8 $2 {[%emt 0:00:23]} ({Much less strong is} 20... cxd5 21. Bxh8 Nxh8 22. Qe5+ Qd6 23. Qxh8 $16) (20... Qxd5 $19 {and Black stays clearly on top.} 21. Qh6 e5) 21. d6+ $2 {[%emt 0:02:12]} (21. dxc6 $17 bxc6 22. Rfd1) 21... Qxd6 $19 {[%emt 0:01:09]} 22. Bxe4 {[%emt 0:03:32]} e5 {[%emt 0:00:03]} 23. Bxg6 {[%emt 0:01:55]} hxg6 {[%emt 0:06:05]} 24. f4 {[%emt 0:01:36]} exf4 {[%emt 0:00:50]} 25. exf4 {[%emt 0:05:09]} Bf5 {[%emt 0:00:25]} 26. Rad1 {[%emt 0:01:57]} Bd3 {[%emt 0:00:52]} 27. Be5 {[%emt 0:00:12] [#]} (27. Rf2 $142 Nd7 28. b3) 27... Rxe5 $1 {[%emt 0:00:07]} 28. fxe5 {[%emt 0:00:05]} (28. Qxe5 Qxe5) 28... Qc5+ {[%emt 0:00:27]} 29. Rf2 {[%emt 0:00:09]} Rf8 {[%emt 0:01:09]} 30. Rdd2 {[%emt 0:00:11]} Nd7 {[%emt 0:00:31]} 31. Kg2 {[%emt 0:01:36]} Qd5+ {[%emt 0:01:36]} 32. Kg1 {[%emt 0:00:15]} Re8 {[%emt 0:00:35][%cal Bf8e8,Be8e5,Be5d5][%mdl 32]} 33. Qf4 {[%emt 0:01:06]} Rxe5 {[%emt 0:00:23] White must now prevent ...g5.} 34. Rd1 {[%emt 0:00:18]} g5 {[%emt 0:00:15]} 35. Qd2 {[%emt 0:00:34]} Qc5 {[%emt 0:03:07] ...Re2 is the strong threat.} 36. Kg2 {[%emt 0:00:28]} Be4+ {[%emt 0:00:20]} 37. Kf1 {[%emt 0:00:23]} Rd5 {[%emt 0:01:13]} 38. Qe1 {[%emt 0:00:54]} Ne5 {[%emt 0:00:23]} 39. Rxd5 {[%emt 0:00:33]} Qxd5 {[%emt 0:00:20]} 40. Rd2 {[%emt 0:00:31] Inhibits Qd3+.} Bd3+ {[%emt 0:00:15]} 41. Kf2 {[%emt 0:30:11]} Ng4+ {[%emt 0:31:01]} (41... Qf3+ $142 42. Kg1 Be4) 42. Kg1 {[%emt 0:00:21]} Qd4+ {[%emt 0:00:12]} 43. Kg2 {[%emt 0:00:23]} Qd5+ {[%emt 0:03:05]} (43... Be4+ $142 44. Kf1 Qf6+ 45. Qf2 Nxf2 46. Rxf2 Qd4 47. Re2 Bd3 48. Ke1 Bxe2 49. Kxe2 Qd3+ 50. Kf2 g4 51. Kg1 Qc2 52. Kf1 Qxb2 53. Kg1 c3 54. Kf1 Qxh2 55. a4 c2 56. Ke1 c1=Q#) 44. Kg1 $1 {[%emt 0:00:00]} Ne5 $2 {[%emt 0:00:00]} (44... c5 $19 45. h3 Qd4+ 46. Rf2 Nxf2 47. Qxf2 c3 48. bxc3 Qxc3 49. Qf7+ Kb6) 45. Rf2 $2 {[%emt 0:00:00][%mdl 8192]} (45. Kf2 $11 Qf3+ 46. Kg1) 45... g4 {[%emt 0:00:00][%cal Bg5g4,Bg4f3][%mdl 32] Black is clearly winning.} ({Not} 45... Nf3+ 46. Rxf3 Qxf3 47. Qe7+ Kc8 48. Qe8+ Kc7 49. Qe7+ Kc8 50. Qe8+ Kc7 51. Qe7+ $11) 46. Qb4 {[%emt 0:00:00]} Nf3+ {[%emt 0:00:00]} 47. Rxf3 {[%emt 0:00:00]} gxf3 {[%emt 0:00:00]} ({Worse is} 47... Qxf3 48. Qe7+ Kc8 49. Qe8+ Kc7 50. Qe7+ Kc8 51. Qe8+ Kc7 52. Qe7+ $11) 48. Qe7+ {[%emt 0:00:00]} Kb6 {[%emt 0:00:00] ( -> ...Qd4+)} 49. Qb4+ {[%emt 0:00:00]} Qb5 {[%emt 0:00:00] Weighted Error Value: White=0.63/Black=0.18 (very precise)} 0-1

[Event "4th ESNA Championship 2022"]
[Site "Vaduz"]
[Date "2022.10.01"]
[Round "9.3"]
[White "Volpinari, Danilo"]
[Black "Carpenter, Paul A"]
[Result "0-1"]
[ECO "C10"]
[WhiteElo "1929"]
[BlackElo "1986"]
[Annotator "TA"]
[PlyCount "123"]
[EventDate "2022.09.25"]
[EventType "tourn"]
[EventCountry "LIE"]
[SourceTitle "playchess.com"]
[Source "ChessBase"]
[SourceQuality "1"]
[TimeControl "40/5400+30:1800+30"]

{[%evp 9,123,47,43,42,52,50,38,51,39,40,35,-3,20,12,18,0,0,12,12,0,2,0,12,10,6,0,0,-3,-14,-14,0,0,8,0,23,0,0,-22,-17,-32,0,0,0,0,0,-12,-14,-20,-6,-24,-7,-7,0,-4,0,0,27,0,0,-6,0,-20,-17,-9,-8,-31,-27,-41,-9,-28,-11,-27,-27,-27,0,0,0,-26,0,0,0,0,0,0,0,0,0,0,0,0,0,0,0,0,0,0,0,-102,-6,-235,0,-1061,-1026,-909,-836,-2289,-2249,-548,-1986,-1759,-1641,-12834,-11083,-12835,-10044,-1639]} 1. d4 {[%emt 0:00:09]} e6 {[%emt 0:00:07]} 2. Nc3 {[%emt 0:02:54]} f5 {[%emt 0:00:17]} 3. e4 {[%emt 0:00:56]} d5 {[%emt 0:06:24]} 4. exf5 {[%emt 0:04:16]} exf5 {[%emt 0:00:10]} 5. Bf4 {[%emt 0:02:44]} Nf6 {[%emt 0:02:32]} 6. Nf3 {[%emt 0:03:48] C10: French with 3 Nc3: Unusual Black 3rd moves and 3...dxe4.} c6 {[%emt 0:01:58]} 7. Bd3 {[%emt 0:04:07]} Be7 {[%emt 0:08:34]} 8. O-O {[%emt 0:01:48] White is slightly better.} O-O {[%emt 0:00:15]} 9. Re1 {[%emt 0:01:18]} Ne4 {[%emt 0:01:01] [#]} 10. Ne5 $146 {[%emt 0:11:10]} ({Predecessor:} 10. Ne2 Bd7 11. c3 Be8 12. Ng3 Nxg3 13. hxg3 Bh5 14. Re3 Bd6 15. Bxd6 Qxd6 16. Re5 {0-1 (47) Schilay,E (1383)-Schulz,T (1532) Regensburg 2014}) 10... Nd7 {[%emt 0:04:40]} 11. f3 {[%emt 0:01:21]} ({Don't play} 11. Bxe4 fxe4 12. Ne2 Nxe5 13. Bxe5 Bg5 $15) 11... Ng5 {[%emt 0:04:19]} 12. Qe2 {[%emt 0:04:10]} Bf6 {[%emt 0:16:22]} 13. Qd2 {[%emt 0:08:44]} Bxe5 {[%emt 0:26:27]} 14. Bxe5 {[%emt 0:03:07]} Nxe5 {[%emt 0:01:11]} 15. Rxe5 {[%emt 0:04:10]} Qf6 {[%emt 0:03:43]} 16. Qf2 {[%emt 0:06:12]} Nf7 {[%emt 0:02:05]} 17. Ree1 {[%emt 0:06:29]} Bd7 {[%emt 0:01:48]} 18. Rad1 {[%emt 0:04:39]} Rae8 {[%emt 0:01:28]} 19. Nb1 {[%emt 0:00:57]} Ng5 {[%emt 0:04:17]} 20. c3 {[%emt 0:01:37]} Qg6 {[%emt 0:01:21]} 21. Kh1 {[%emt 0:00:21]} Qh5 {[%emt 0:01:22]} 22. Rxe8 {[%emt 0:08:00]} Rxe8 {[%emt 0:01:20]} 23. Rf1 {[%emt 0:02:51]} f4 {[%emt 0:02:31]} 24. Nd2 {[%emt 0:05:36]} Re6 {[%emt 0:03:41]} (24... Re3 $5 {[%cal Re3d3]} 25. Bb1 b6 $15) 25. Re1 {[%emt 0:00:35]} Qe8 {[%emt 0:02:18]} 26. Rxe6 {[%emt 0:01:28]} Qxe6 {[%emt 0:00:39]} 27. Qe2 {[%emt 0:00:43]} Qxe2 {[%emt 0:00:52]} 28. Bxe2 $11 {[%emt 0:00:02][%mdl 4096] Endgame KBN-KBN} Bf5 {[%emt 0:00:05]} 29. Kg1 {[%emt 0:00:53]} Kf7 {[%emt 0:00:21]} 30. Nb3 {[%emt 0:00:33]} b6 {[%emt 0:00:11]} 31. Nc1 {[%emt 0:00:25]} h5 {[%emt 0:01:33]} 32. Bd3 {[%emt 0:01:52]} Bd7 {[%emt 0:00:18]} 33. Bc2 {[%emt 0:00:32]} (33. h4 $5 {[%cal Rh4g5]} Ne6 34. Bf5 $11) 33... Kf6 {[%emt 0:00:49]} 34. Kf2 {[%emt 0:00:39]} Ne6 {[%emt 0:00:38]} 35. Nd3 {[%emt 0:00:33]} c5 {[%emt 0:00:39]} 36. dxc5 $1 {[%emt 0:02:45]} bxc5 {[%emt 0:00:10]} 37. Ke1 {[%emt 0:01:30]} g5 {[%emt 0:00:39]} 38. Nf2 {[%emt 0:00:46]} Be8 {[%emt 0:01:08]} 39. Kd2 {[%emt 0:00:21]} Ke5 {[%emt 0:00:31]} 40. Nd3+ {[%emt 0:00:23]} Kd6 {[%emt 0:00:20]} 41. Nf2 {[%emt 0:06:29]} Ke5 {[%emt 0:03:17]} 42. Nd3+ {[%emt 0:04:05]} Kf6 {[%emt 0:03:30]} 43. Nf2 {[%emt 0:00:42]} Ng7 {[%emt 0:02:15]} 44. c4 {[%emt 0:03:04]} Bc6 {[%emt 0:05:15]} 45. cxd5 {[%emt 0:02:35]} Bxd5 {[%emt 0:00:04]} 46. Ne4+ {[%emt 0:03:05]} Bxe4 {[%emt 0:02:59]} 47. Bxe4 {[%emt 0:00:02] KB-KN} Ne8 {[%emt 0:03:19]} 48. Kc3 {[%emt 0:00:31]} Nd6 {[%emt 0:00:42]} 49. Bd3 {[%emt 0:02:28]} Ke5 {[%emt 0:01:14]} 50. Bg6 {[%emt 0:00:20]} h4 {[%emt 0:13:51]} 51. Bd3 Kd5 52. h3 c4 53. Bh7 (53. Be2 $11) 53... Kc5 (53... Nb5+ $1 $17 54. Kb4 Nc7) 54. a4 $2 {[#]} (54. b4+ $1 $11 cxb3 55. axb3) 54... a5 $2 ({Black should try} 54... Nc8 $1 $19 {[%cal Rc8e7] Threatens to win with ...Ne7.} 55. Bg8 Nb6) 55. Bc2 $2 {[%mdl 8192] [#]} (55. Bg6 $11) 55... Nc8 $1 $19 {Black is clearly winning.} 56. Be4 Nb6 57. b3 cxb3 58. Kxb3 Kd4 59. Bc6 Nc4 {Strongly threatening ...Ne3.} 60. Bb5 Ne3 61. Bc6 Nxg2 {[%emt 0:00:00]} 62. Bb7 {[%emt 0:06:31] Weighted Error Value: White=0.52/Black=0.13 (very precise)} 0-1

[Event "4th ESNA Championship 2022"]
[Site "Vaduz"]
[Date "2022.10.01"]
[Round "9.4"]
[White "Apol, Luitjen Akselsson"]
[Black "Henderson de La Fuente, Lance"]
[Result "0-1"]
[ECO "C07"]
[WhiteElo "2113"]
[BlackElo "2504"]
[Annotator "TA"]
[PlyCount "91"]
[EventDate "2022.09.25"]
[EventType "tourn"]
[EventCountry "LIE"]
[SourceTitle "playchess.com"]
[Source "ChessBase"]
[SourceQuality "1"]
[TimeControl "40/5400+30:1800+30"]

{[%evp 11,91,3,22,21,12,12,17,6,25,2,23,23,34,22,17,22,26,18,62,56,67,12,20,20,19,3,0,0,24,0,0,-14,0,-10,0,-16,-16,-193,-31,-155,-152,-144,-148,-153,-90,-89,-89,-87,-94,-122,-126,-213,-108,-187,-184,-184,-190,-307,-285,-277,-196,-304,-291,-306,-301,-403,-395,-545,-401,-616,-612,-1904,-2437,-2799,-2799,-2484,-2247,-1894,-1410,-29968,-29968,-29991]} 1. e4 {[%emt 0:00:08]} e6 {[%emt 0:01:33]} 2. d4 {[%emt 0:00:21]} d5 {[%emt 0:00:08]} 3. Nd2 {[%emt 0:00:22]} c5 {[%emt 0:00:35]} 4. Ngf3 {[%emt 0:00:25]} cxd4 {[%emt 0:01:01]} 5. Nxd4 {[%emt 0:00:37]} Nf6 {[%emt 0:00:39]} 6. exd5 {[%emt 0:00:24]} Nxd5 {[%emt 0:00:26]} 7. N2f3 {[%emt 0:00:56] C07: French Tarrasch: 3...c5, 4 Ngf3 and 4 exd5 Qxd5.} Bb4+ {[%emt 0:00:37]} 8. Bd2 {[%emt 0:01:35]} (8. c3 Nxc3 $1 9. Qc2 Nb5+ 10. Bd2 Nxd4 $17) 8... Bc5 {[%emt 0:00:50]} 9. c3 {[%emt 0:13:03] The position is equal.} O-O {[%emt 0:01:10][%cal Oe6e5]} 10. Bc4 {[%emt 0:03:07] [#]} Bxd4 $146 {[%emt 0:13:49]} ({Predecessor:} 10... b6 11. O-O Bb7 12. Qe2 Nf6 13. Rad1 Nbd7 14. Bf4 Qc8 15. Rfe1 a6 16. Bb3 Re8 {1-0 (51) Nepomniachtchi,I (2773)-Grischuk,A (2742) Chess.com INT 2022}) 11. Nxd4 {[%emt 0:18:08]} b6 {[%emt 0:19:03]} 12. Qe2 {[%emt 0:04:42]} Bb7 {[%emt 0:01:27]} 13. O-O {[%emt 0:02:13]} Nd7 {[%emt 0:02:06]} 14. Rad1 {[%emt 0:04:22]} (14. Nxe6 $2 fxe6 15. Qxe6+ Kh8 $19) 14... Re8 {[%emt 0:08:49]} 15. Rfe1 {[%emt 0:07:59]} a6 {[%emt 0:03:27]} 16. Nf3 {[%emt 0:08:43]} (16. Bd3 $14) 16... Qc7 $11 {[%emt 0:04:49]} 17. Bb3 {[%emt 0:07:53]} b5 {[%emt 0:07:09]} 18. Bg5 {[%emt 0:02:45][%cal Bd2g5,Bg5h4,Bh4g3][%mdl 32]} f6 {[%emt 0:10:55]} 19. Bh4 {[%emt 0:00:12]} N7b6 {[%emt 0:02:10]} 20. Nd4 {[%emt 0:05:25]} e5 {[%emt 0:03:50]} 21. Nf5 {[%emt 0:01:53]} Kh8 {[%emt 0:00:27] aiming for ...Nf4.} 22. Bg3 {[%emt 0:03:03]} Rad8 {[%emt 0:01:40]} 23. Bc2 {[%emt 0:02:04]} Nc4 {[%emt 0:00:53]} 24. Be4 $2 {[%emt 0:00:58]} (24. Bd3 $11 {and White is okay.}) 24... g6 $2 {[%emt 0:01:27]} (24... Nf4 $1 $19 {[%cal Rf4e2]} 25. Qc2 (25. Bxf4 $2 exf4 26. Rxd8 Qxd8 $19) 25... Rxd1 26. Rxd1 Bxe4 27. Qxe4 Nxb2) 25. Nd4 {[%emt 0:05:14]} (25. Nh6 $15) 25... Nf4 $1 $17 {[%emt 0:05:32]} 26. Bxf4 {[%emt 0:02:26]} exf4 {[%emt 0:00:09]} 27. Qc2 {[%emt 0:00:50]} Bxe4 {[%emt 0:01:16] Black is more active.} (27... Qe7 $142 $1 {[%cal Rb7e4]} 28. b3 (28. f3 $2 Ne3 $19) 28... Nd6) 28. Rxe4 {[%emt 0:00:02]} Rxe4 {[%emt 0:00:02]} 29. Qxe4 {[%emt 0:00:12]} Nxb2 {[%emt 0:00:27][%cal Bc4b2,Bb2a4,Ba4c3][%mdl 32]} 30. Rc1 {[%emt 0:02:17]} Na4 $1 {[%emt 0:04:27]} 31. Ne2 {[%emt 0:03:04] [#]} (31. Qe6 $17 Qd6 32. h3) 31... Qe5 $40 {[%emt 0:01:33][%mdl 128] Black wants a kill.} (31... Nxc3 $1 $19 {[%mdl 512]} 32. Nxc3 {[#]} Qxc3 $3 {[%mdl 512]}) 32. Qxf4 {[%emt 0:00:32]} (32. Qf3 $17) 32... Qxf4 $19 {[%emt 0:01:03]} 33. Nxf4 {[%emt 0:00:01]} Nxc3 $17 {[%emt 0:00:43][%mdl 4096] Endgame KRN-KRN} 34. g3 {[%emt 0:00:57]} (34. a3 $142) 34... b4 $19 {[%emt 0:00:55]} ({Wrong is} 34... Nxa2 $2 35. Rc6 $19) 35. Rc2 {[%emt 0:00:30]} Rd1+ {[%emt 0:00:52]} 36. Kg2 {[%emt 0:00:01]} Ra1 {[%emt 0:01:14]} 37. Nd3 {[%emt 0:00:55]} a5 {[%emt 0:00:42][%cal Ba6a5,Ba5a4,Ba4a3][%mdl 32]} ({Worse is} 37... Nxa2 38. Rc6 $17) ({Not} 37... Rxa2 38. Nxb4 Rxc2 39. Nxc2 $17) 38. Nc1 {[%emt 0:00:19]} a4 {[%emt 0:00:46][%cal Oc3a2] Against Nb3. Threatens to win with ...Nxa2!} 39. Kf3 {[%emt 0:00:17]} a3 {[%emt 0:00:35][%cal Oc3a2]} 40. Ke3 {[%emt 0:00:38] [#]} (40. Nb3 $142 Rb1 41. Nd2) 40... Nxa2 $1 {[%emt 0:00:37][%mdl 512]} 41. Nxa2 {[%emt 0:01:32] KRN-KR} (41. Nb3 Rb1) 41... b3 {[%emt 0:00:10][%csl LRa2,LRc2]} 42. Rc8+ {[%emt 0:03:04]} Kg7 {[%emt 0:00:38]} 43. Nc3 {[%emt 0:01:24]} a2 {[%emt 0:01:31]} 44. Rc7+ {[%emt 0:01:36]} Kh6 {[%emt 0:00:18] ...Re1+ is the strong threat.} 45. Nxa2 {[%emt 0:06:21]} bxa2 {[%emt 0:00:39]} 46. Kd4 {[%emt 0:20:00] Weighted Error Value: White=0.62/Black=0.17 (very precise)} 0-1

[Event "4th ESNA Championship 2022"]
[Site "Vaduz"]
[Date "2022.10.01"]
[Round "9.5"]
[White "Frick, Renato"]
[Black "Berend, Fred"]
[Result "0-1"]
[ECO "C18"]
[WhiteElo "1875"]
[BlackElo "2300"]
[Annotator "TA"]
[PlyCount "98"]
[EventDate "2022.09.25"]
[EventType "tourn"]
[EventCountry "LIE"]
[SourceTitle "playchess.com"]
[Source "ChessBase"]
[SourceQuality "1"]
[TimeControl "40/5400+30:1800+30"]

{[%evp 28,98,37,34,109,116,115,1,2,0,0,0,0,-29,0,0,0,0,0,0,0,0,0,0,28,34,78,0,0,0,32,0,0,-62,123,62,91,45,51,18,30,0,0,0,0,0,12,0,0,-37,-29,-121,-122,-219,-107,-104,-138,-282,-254,-423,-416,-408,-408,-279,-192,-400,-367,-324,-151,-12838,-12839,-12838,-12838]} 1. e4 {[%emt 0:00:05]} e6 {[%emt 0:00:45]} 2. d4 {[%emt 0:00:11]} d5 {[%emt 0:00:02]} 3. Nc3 {[%emt 0:00:09]} Bb4 {[%emt 0:00:04]} 4. e5 {[%emt 0:00:09]} c5 {[%emt 0:00:05]} 5. a3 {[%emt 0:00:07]} Bxc3+ {[%emt 0:00:04]} 6. bxc3 {[%emt 0:00:07]} Ne7 {[%emt 0:00:03]} 7. Qg4 {[%emt 0:00:25]} Qc7 {[%emt 0:00:07]} 8. Qxg7 {[%emt 0:00:09]} Rg8 {[%emt 0:00:05]} 9. Qxh7 {[%emt 0:00:07]} cxd4 {[%emt 0:00:08]} 10. Ne2 {[%emt 0:00:06]} Nbc6 {[%emt 0:00:20]} 11. f4 {[%emt 0:00:06]} dxc3 {[%emt 0:00:15]} 12. Qd3 {[%emt 0:00:07]} d4 {[%emt 0:01:12]} 13. Nxd4 {[%emt 0:00:19]} Nxd4 {[%emt 0:00:09]} 14. Qxd4 {[%emt 0:00:09]} Bd7 {[%emt 0:05:23]} 15. Rg1 {[%emt 0:04:02]} Qc6 {[%emt 0:15:04] [#] C18: French: 3 Nc3 Bb4: Main line: 7 h4 and 7 Qg4.} ({Black should try} 15... Nf5 $14 16. Qf2 Qc6) 16. g4 $146 {[%emt 0:20:46]} ({Predecessor:} 16. Rb1 Nf5 17. Qc4 Qa4 18. Qxa4 Bxa4 19. Bd3 Nd4 20. Kf2 O-O-O 21. Rb4 b5 22. Be3 Nc6 23. Rbb1 {1-0 (42) Daamen,R (2028)-Westerweele,H (1906) Maastricht 2015}) 16... Rd8 {[%emt 0:20:37]} 17. Bg2 {[%emt 0:21:29]} (17. h3 $16) 17... Qa6 $1 $11 {[%emt 0:08:24] The position is equal.} 18. Bf1 {[%emt 0:07:21]} Bb5 {[%emt 0:13:14]} 19. Bxb5+ {[%emt 0:00:25]} Qxb5 {[%emt 0:00:46]} 20. Qxc3 {[%emt 0:08:45]} (20. a4 Qc6 21. Qe3 Rh8 $17) 20... Nd5 {[%emt 0:01:37]} (20... Qa4 $5 {[%cal Re7d5]} 21. Rg3 Rc8 $11) 21. Qb3 {[%emt 0:01:58]} Qc5 {[%emt 0:01:02]} 22. Rg3 {[%emt 0:00:14]} Qd4 {[%emt 0:02:34][%csl LRa1,LRf4]} 23. Rb1 {[%emt 0:11:02]} ({Much worse is} 23. Qb5+ Rd7 24. Bb2 Qe4+ 25. Qe2 Qh1+ 26. Kf2 Qxh2+ 27. Kf3 Qxe2+ 28. Kxe2 Nxf4+ 29. Kf3 Ng6 $17) 23... Qe4+ {[%emt 0:00:41]} (23... Nxf4 $2 24. Qb5+ Kf8 25. Qb4+ Qxb4+ 26. Rxb4 $18) 24. Be3 {[%emt 0:02:30]} b6 {[%emt 0:10:20]} 25. Rd1 {[%emt 0:12:55]} Rc8 {[%emt 0:13:38] Chess con chili.} ({Don't take} 25... Nxf4 26. Rxd8+ (26. Qb5+ Ke7 $16) 26... Kxd8 27. Qb4 Qxb4+ 28. axb4 $16) 26. Qd3 {[%emt 0:03:38]} Qa4 {[%emt 0:02:05] [#]} 27. Qb3 {[%emt 0:01:26]} ({Better is} 27. Rd2 $1 $16) 27... Qe4 {[%emt 0:00:33]} 28. Qd3 {[%emt 0:00:06]} Rc4 {[%emt 0:01:46]} 29. Qxe4 {[%emt 0:02:19]} Rxe4 {[%emt 0:00:01]} 30. Kf2 {[%emt 0:00:16]} (30. Kd2 $11) 30... Ra4 $2 {[%emt 0:00:39] [#]} (30... Nxe3 $15 {keeps the upper hand.} 31. Rxe3 Rxf4+ 32. Rf3 Rgxg4) 31. Bc1 {[%emt 0:00:26]} (31. Rd4 $16 Rxa3 32. Bd2) 31... Nxf4 {[%emt 0:00:12]} 32. h3 {[%emt 0:00:34]} (32. c3 $16) 32... Nd5 $14 {[%emt 0:00:38]} 33. Rgd3 {[%emt 0:01:06] Hoping for Rd4.} Rc4 {[%emt 0:00:08]} 34. c3 {[%emt 0:00:44]} Ke7 {[%emt 0:00:38]} 35. Bd2 {[%emt 0:02:26]} Rgc8 {[%emt 0:00:28]} 36. Rc1 {[%emt 0:00:47]} R8c5 {[%emt 0:00:48]} 37. Bg5+ {[%emt 0:00:17]} Kf8 {[%emt 0:00:57]} 38. Be3 {[%emt 0:00:30]} Ra5 {[%emt 0:00:41]} 39. Bd4 {[%emt 0:00:33]} (39. Rd4 $11 {keeps the balance.} Nxe3 40. Kxe3 Rxe5+ 41. Kd3) 39... Rxa3 $17 {[%emt 0:00:34] Black is more active.} 40. h4 {[%emt 0:00:54]} (40. Rf3 $17) 40... Kg7 {[%emt 0:01:00]} (40... b5 $19 {...Kg7 is the strong threat.} 41. Rdd1 Ra2+ 42. Kg1 Re2) 41. h5 {[%emt 0:02:11]} b5 {[%emt 0:04:05] And now ...b4 would win.} 42. Rh1 {[%emt 0:03:12]} (42. g5 $17) 42... Nxc3 $19 {[%emt 0:06:22]} 43. Rxc3 $2 {[%emt 0:03:49]} (43. g5 Ra2+ 44. Kf3) 43... Raxc3 {[%emt 0:00:19]} 44. Bxc3 {[%emt 0:00:13]} Rxc3 {[%emt 0:00:03] KR-KR} 45. Ra1 {[%emt 0:00:10]} Rc7 {[%emt 0:00:05]} 46. Kf3 $2 {[%emt 0:00:21]} (46. Ra5) 46... Kh6 {[%emt 0:03:18]} 47. Ra5 {[%emt 0:02:00]} Rb7 {[%emt 0:00:49]} (47... b4 $19 {has better winning chances. aiming for ...Rb7.} 48. Ke3 b3) 48. Kg3 $2 {[%emt 0:02:16]} (48. Ke2 $17) 48... b4 {[%emt 0:00:15][%cal Bb5b4,Bb4b3][%mdl 32]} 49. Kh4 {[%emt 0:00:15]} b3 {[%emt 0:00:20] Weighted Error Value: White=0.50/Black=0.27 (precise)} 0-1